bitfinex-derivatives/quotes_BTCF0:USTF0_20250517
["timestamp","ask_amount","ask_price","bid_price","bid_amount"]
[1747458873524,0.80979902,103610.0,103600.0,0.23892402]
[1747458874428,0.80979902,103610.0,103600.0,0.28798272]
[1747458875428,0.44899902,103610.0,103600.0,0.28798272]
[1747458875629,0.80979902,103610.0,103600.0,0.28798272]
[1747458877023,0.80979902,103610.0,103600.0,0.48096822]
[1747458880633,0.7473145,103610.0,103600.0,0.54345274]
[1747458880831,0.7473145,103610.0,103600.0,0.68185274]
[1747458881333,0.3865145,103610.0,103600.0,0.86185274]
[1747458882023,0.35682386,103610.0,103600.0,0.86185274]
[1747458882437,0.32657935,103610.0,103600.0,0.86185274]
[1747458883434,0.32657935,103610.0,103600.0,0.70281822]
[1747458884130,0.37177935,103610.0,103600.0,0.70281822]
[1747458884626,0.32657935,103610.0,103600.0,0.70281822]
[1747458885225,0.32657935,103610.0,103600.0,0.60626822]
[1747458886333,0.32657935,103610.0,103600.0,0.71623822]
[1747458887238,0.32657935,103610.0,103600.0,0.61969822]
[1747458887433,0.32657935,103610.0,103600.0,0.72446181]
[1747458887829,0.44713631,103610.0,103600.0,0.68218274]
[1747458888836,0.44713631,103610.0,103600.0,0.73118755]
[1747458889837,0.49503631,103610.0,103600.0,0.73118755]
[1747458890131,0.37447935,103610.0,103600.0,0.73118755]
[1747458893238,0.37447935,103610.0,103600.0,0.73662971]
[1747458894331,0.37447935,103610.0,103600.0,0.79903998]
[1747458896143,0.37447935,103610.0,103600.0,0.59251998]
[1747458896350,0.42167935,103610.0,103600.0,0.79895998]
[1747458896644,0.42167935,103610.0,103600.0,0.73647546]
[1747458896942,0.42167935,103610.0,103600.0,0.79895998]
[1747458897144,0.42167935,103610.0,103600.0,0.61895998]
[1747458897349,0.42167935,103610.0,103600.0,0.71540548]
[1747458899239,0.42167935,103610.0,103600.0,0.89540548]
[1747458899745,0.42167935,103610.0,103600.0,0.93768352]
[1747458900041,0.42167935,103610.0,103600.0,1.11768352]
[1747458900242,0.42167935,103610.0,103600.0,0.93768352]
[1747458900547,0.37447935,103610.0,103600.0,1.29848352]
[1747458900748,0.18151245,103610.0,103600.0,1.29848352]
[1747458900942,0.18151245,103610.0,103600.0,1.31869]
[1747458901150,0.18151245,103610.0,103600.0,1.22515178]
[1747458901357,0.13821245,103610.0,103600.0,1.22759216]
[1747458901557,0.13821245,103610.0,103600.0,1.26986987]
[1747458901959,0.1984518,103610.0,103600.0,1.31504456]
[1747458902160,0.1984518,103610.0,103600.0,1.21850456]
[1747458902356,0.2440518,103610.0,103600.0,1.2130624]
[1747458902764,0.2440518,103610.0,103600.0,1.26039348]
[1747458903067,0.1984518,103610.0,103600.0,1.26039348]
[1747458903254,0.1984518,103610.0,103600.0,1.31870288]
[1747458903455,0.16153585,103610.0,103600.0,1.31870288]
[1747458904165,0.16153585,103610.0,103600.0,1.22216288]
[1747458904367,0.16153585,103610.0,103600.0,1.31846288]
[1747458905066,0.16153585,103610.0,103600.0,1.23729925]
[1747458905269,0.30636585,103610.0,103600.0,1.23729925]
[1747458905466,0.25296935,103610.0,103600.0,1.29756119]
[1747458908070,0.25296935,103610.0,103600.0,1.39756119]
[1747458909569,0.25296935,103610.0,103600.0,1.40300335]
[1747458910570,0.25296935,103610.0,103600.0,1.50064278]
[1747458910571,0.19273,103610.0,103600.0,1.50064278]
[1747458910774,0.14966326,103610.0,103600.0,1.50064278]
[1747458910968,0.14483,103610.0,103600.0,1.50064278]
[1747458911568,0.09653,103610.0,103600.0,1.59172105]
[1747458912067,0.14183,103610.0,103600.0,1.59172105]
[1747458912466,0.09653,103610.0,103600.0,1.68824105]
[1747458913776,0.09653,103610.0,103600.0,1.64306636]
[1747458913970,0.19253,103610.0,103600.0,1.64306636]
[1747458914671,0.19253,103610.0,103600.0,1.64850852]
[1747458916175,0.19253,103610.0,103600.0,1.57472306]
[1747458916379,0.23733,103610.0,103600.0,1.79436263]
[1747458916570,0.23733,103610.0,103600.0,1.78892047]
[1747458917073,0.23733,103610.0,103600.0,1.58260047]
[1747458917267,0.23733,103610.0,103600.0,1.78892047]
[1747458919077,0.22733159,103610.0,103600.0,1.78892047]
[1747458920575,0.22733159,103610.0,103600.0,1.83406029]
[1747458921972,0.22733159,103610.0,103600.0,1.47326029]
[1747458922170,0.22733159,103610.0,103600.0,1.83406029]
[1747458924180,0.19041952,103610.0,103600.0,1.83406029]
[1747458924477,0.19041952,103610.0,103600.0,1.50277125]
[1747458924671,0.19041952,103610.0,103600.0,1.05515577]
[1747458924974,0.19041952,103610.0,103600.0,1.21443577]
[1747458925181,0.19041952,103610.0,103600.0,1.03443577]
[1747458925681,0.19041952,103610.0,103600.0,1.39523577]
[1747458925886,0.19041952,103610.0,103600.0,1.44343577]
[1747458926079,0.19141952,103610.0,103600.0,1.44343577]
[1747458926579,0.14935546,103610.0,103600.0,1.08263577]
[1747458926781,0.14935546,103610.0,103600.0,1.44343577]
[1747458927082,0.14935546,103610.0,103600.0,1.08263577]
[1747458927281,0.14935546,103610.0,103600.0,1.3532842]
[1747458927679,0.14935546,103610.0,103600.0,0.9924842]
[1747458927883,0.14935546,103610.0,103600.0,1.3532842]
[1747458928079,0.14935546,103610.0,103600.0,0.9924842]
[1747458928286,0.14935546,103610.0,103600.0,1.3532842]
[1747458929283,0.14935546,103610.0,103600.0,1.5332842]
[1747458929482,0.14935546,103610.0,103600.0,1.47079968]
[1747458929686,0.14935546,103610.0,103600.0,1.5332842]
[1747458930090,0.14935546,103610.0,103600.0,1.3532842]
[1747458931792,0.14935546,103610.0,103600.0,0.9924842]
[1747458931991,0.14935546,103610.0,103600.0,1.3532842]
[1747458933189,0.14935546,103610.0,103600.0,1.5332842]
[1747458933487,0.14935546,103610.0,103600.0,1.62343577]
[1747458937096,0.14935546,103610.0,103600.0,1.44343577]
[1747458938191,0.14935546,103610.0,103600.0,1.62343577]
[1747458941188,0.14935546,103610.0,103600.0,1.57829595]
[1747458942099,0.14935546,103610.0,103600.0,1.64078047]
[1747458944699,0.11244211,103610.0,103600.0,1.64078047]
[1747458946299,0.11244211,103610.0,103600.0,1.68688047]
[1747458946701,0.11244211,103610.0,103600.0,1.27424047]
[1747458947000,0.11244211,103610.0,103600.0,1.68660047]
[1747458949099,0.06937652,103610.0,103600.0,1.68660047]
[1747458949301,0.06937652,103610.0,103600.0,1.72810047]
[1747458952115,0.06937652,103610.0,103600.0,1.73354263]
[1747458952317,0.12007652,103610.0,103600.0,1.73354263]
[1747458955122,0.12007652,103610.0,103600.0,1.72810047]
[1747458957120,0.12007652,103610.0,103600.0,1.54810047]
[1747458958117,0.12007652,103610.0,103600.0,1.72810047]
[1747458958718,0.002,103610.0,103600.0,1.72810047]
[1747458958919,0.002,103610.0,103600.0,1.82810047]
[1747458960419,0.39315653,103620.0,103610.0,0.192967]
[1747458960615,0.39315653,103620.0,103610.0,0.76645152]
[1747458960817,0.39315653,103620.0,103610.0,0.80872923]
[1747458961216,0.39315653,103620.0,103610.0,0.98872923]
[1747458961623,0.39415653,103620.0,103610.0,0.98872923]
[1747458962117,0.39415653,103620.0,103610.0,1.09420664]
[1747458962518,0.39415653,103620.0,103610.0,0.73340664]
[1747458962721,0.39415653,103620.0,103610.0,1.30028664]
[1747458963519,0.39415653,103620.0,103610.0,1.38145027]
[1747458963821,0.39515653,103620.0,103610.0,1.38145027]
[1747458966330,0.39515653,103620.0,103610.0,1.38689243]
[1747458968621,0.3582453,103620.0,103610.0,1.38689243]
[1747458974232,0.26795812,103620.0,103610.0,1.38689243]
[1747458976033,0.26795812,103620.0,103610.0,1.32440791]
[1747458976238,0.26795812,103620.0,103610.0,1.38689243]
[1747458976835,0.3582453,103620.0,103610.0,1.38689243]
[1747458978136,0.3582453,103620.0,103610.0,1.20689243]
[1747458978436,0.3582453,103620.0,103610.0,1.20145027]
[1747458979138,0.3582453,103620.0,103610.0,1.38145027]
[1747458979445,0.3582453,103620.0,103610.0,1.02065027]
[1747458979645,0.3582453,103620.0,103610.0,0.95816575]
[1747458979940,0.3582453,103620.0,103610.0,1.08570836]
[1747458980438,0.3582453,103620.0,103610.0,0.98860836]
[1747458981342,0.3582453,103620.0,103610.0,1.34940836]
[1747458981738,0.3582453,103620.0,103610.0,0.98852836]
[1747458982048,0.3582453,103620.0,103610.0,1.34932836]
[1747458982342,0.3582453,103620.0,103610.0,1.19456836]
[1747458983237,0.3582453,103620.0,103610.0,0.92608384]
[1747458983551,0.3582453,103620.0,103610.0,1.19452836]
[1747458983731,0.5511936,103620.0,103610.0,0.78252836]
[1747458983933,0.5511936,103620.0,103610.0,1.07894384]
[1747458984234,0.5511936,103620.0,103610.0,0.89894384]
[1747458984642,0.5511936,103620.0,103610.0,0.97270852]
[1747458984844,0.5511936,103620.0,103610.0,1.02170852]
[1747458985343,0.52786548,103620.0,103610.0,0.96144658]
[1747458987043,0.52786548,103620.0,103610.0,1.0239311]
[1747458987447,0.33491718,103620.0,103610.0,1.0239311]
[1747458987840,0.33491718,103620.0,103610.0,0.8179711]
[1747458988146,0.33491718,103620.0,103610.0,1.0239311]
[1747458990549,0.33491718,103620.0,103610.0,0.94276747]
[1747458991347,0.52786548,103620.0,103610.0,0.94276747]
[1747458991545,0.33491718,103620.0,103610.0,0.94276747]
[1747458994149,0.29800361,103620.0,103610.0,0.94276747]
[1747458996245,0.29800361,103620.0,103610.0,1.02086882]
[1747458996653,0.29800361,103620.0,103610.0,0.9583843]
[1747458996858,0.29800361,103620.0,103610.0,1.02086882]
[1747458997152,0.49095191,103620.0,103610.0,0.7524243]
[1747458997356,0.55343643,103620.0,103610.0,0.9583443]
[1747458997560,0.49095191,103620.0,103610.0,0.5463843]
[1747458997854,0.49095191,103620.0,103610.0,0.9581843]
[1747459000258,0.49095191,103620.0,103610.0,0.88008295]
[1747459000556,0.55122075,103620.0,103610.0,0.88008295]
[1747459001647,0.91202075,103620.0,103610.0,0.88008295]
[1747459001959,0.91202075,103620.0,103610.0,0.67416295]
[1747459002159,0.55122075,103620.0,103610.0,0.88004295]
[1747459002557,0.91202075,103620.0,103610.0,0.88004295]
[1747459002957,0.55122075,103620.0,103610.0,0.88004295]
[1747459003159,0.91202075,103620.0,103610.0,0.88004295]
[1747459004458,0.91202075,103620.0,103610.0,0.80627827]
[1747459005255,0.85175191,103620.0,103610.0,0.7610628]
[1747459005958,0.49095191,103620.0,103610.0,0.7610628]
[1747459006153,0.85175191,103620.0,103610.0,0.7610628]
[1747459006962,0.49095191,103620.0,103610.0,0.7610628]
[1747459008056,0.49095191,103620.0,103610.0,0.80627827]
[1747459008365,0.49095191,103620.0,103610.0,0.86876279]
[1747459008967,0.49095191,103620.0,103610.0,1.02062882]
[1747459010161,0.49095191,103620.0,103610.0,1.20062882]
[1747459011161,0.49095191,103620.0,103610.0,1.02062882]
[1747459012762,0.49095191,103620.0,103610.0,0.9581443]
[1747459013357,0.55343643,103620.0,103610.0,0.3534173]
[1747459013573,0.91423643,103620.0,103610.0,0.9581442]
[1747459014059,0.91423643,103620.0,103610.0,0.91586649]
[1747459014566,0.85175191,103620.0,103610.0,0.95816965]
[1747459014866,0.85175191,103620.0,103610.0,0.91586649]
[1747459015564,0.85175191,103620.0,103610.0,0.66102649]
[1747459015765,0.85175191,103620.0,103610.0,0.86686649]
[1747459016066,0.85175191,103620.0,103610.0,0.91846649]
[1747459016271,0.85462,103620.0,103610.0,0.65301649]
[1747459016472,0.85462,103620.0,103610.0,0.61428959]
[1747459016663,0.85462,103620.0,103610.0,0.80725649]
[1747459016863,0.76433282,103620.0,103610.0,0.15731412]
[1747459017266,1.10332934,103620.0,103610.0,0.15731412]
[1747459017967,1.10332934,103620.0,103610.0,0.07921277]
[1747459018169,0.1929669,103610.0,103600.0,0.78275322]
[1747459018464,0.76875142,103610.0,103600.0,0.04521547]
[1747459018664,0.86527142,103610.0,103600.0,0.04521547]
[1747459019064,1.04527142,103610.0,103600.0,0.04521547]
[1747459019265,1.04527142,103610.0,103590.0,1.0054425]
[1747459019266,0.1929855,103600.0,103590.0,0.95410797]
[1747459019463,0.7089855,103600.0,103590.0,0.95410797]
[1747459019662,0.7089855,103600.0,103590.0,0.85309839]
[1747459020761,0.7089855,103600.0,103590.0,0.85509839]
[1747459021371,0.7109855,103600.0,103590.0,0.85509839]
[1747459021569,0.77347002,103600.0,103590.0,0.85409839]
[1747459021966,0.77347002,103600.0,103590.0,0.80584799]
[1747459022171,0.77347002,103600.0,103590.0,0.75759779]
[1747459022368,0.77347002,103600.0,103590.0,0.75859779]
[1747459022775,0.86367246,103600.0,103590.0,0.75859779]
[1747459022965,0.86367246,103600.0,103590.0,0.80771303]
[1747459023668,0.86367246,103600.0,103590.0,0.75946393]
[1747459023873,0.86367246,103600.0,103590.0,0.56647343]
[1747459025373,0.92376774,103600.0,103590.0,0.56647343]
[1747459027071,0.92376774,103600.0,103590.0,0.75947763]
[1747459028474,0.92376774,103600.0,103590.0,0.56647343]
[1747459028974,0.92376774,103600.0,103590.0,0.75947763]
[1747459029474,0.92376774,103600.0,103590.0,0.56647343]
[1747459029675,0.92376774,103600.0,103590.0,0.75947763]
[1747459030172,0.92376774,103600.0,103590.0,0.66292763]
[1747459032278,0.92376774,103600.0,103590.0,0.46992343]
[1747459032476,0.92376774,103600.0,103590.0,0.66292763]
[1747459033275,0.92376774,103600.0,103590.0,0.56637763]
[1747459033479,0.92376774,103600.0,103590.0,0.61897763]
[1747459035474,0.92376774,103600.0,103590.0,0.42597343]
[1747459036086,0.92376774,103600.0,103590.0,0.61897753]
[1747459036579,0.92376774,103600.0,103590.0,0.66762035]
[1747459041080,0.86367246,103600.0,103590.0,0.66762035]
[1747459044186,0.86367246,103600.0,103590.0,0.57107035]
[1747459044578,0.89402698,103600.0,103590.0,0.57107035]
[1747459044778,0.89402698,103600.0,103590.0,0.52195511]
[1747459045481,0.83154246,103600.0,103590.0,0.52195511]
[1747459045681,0.83154246,103600.0,103590.0,0.62425511]
[1747459046383,0.12255696,103600.0,103590.0,0.69218179]
[1747459046891,0.31554256,103600.0,103590.0,0.69218179]
[1747459047092,0.31554256,103600.0,103590.0,0.87218179]
[1747459047387,0.12255696,103600.0,103590.0,0.98143179]
[1747459047890,0.1949856,103600.0,103590.0,0.98143179]
[1747459049094,0.1949856,103600.0,103590.0,1.12123233]
[1747459050798,0.28538331,103600.0,103590.0,1.16350792]
[1747459051298,0.28538331,103600.0,103590.0,1.12123233]
[1747459051997,0.28538331,103600.0,103590.0,1.16351917]
[1747459053199,0.33948331,103600.0,103590.0,1.16351917]
[1747459053400,0.33948331,103600.0,103590.0,1.15807701]
[1747459053599,0.3997379,103600.0,103590.0,1.15807701]
[1747459054400,0.3997379,103600.0,103590.0,1.16351917]
[1747459055199,0.3997379,103600.0,103590.0,1.12123233]
[1747459055602,0.3997379,103600.0,103590.0,1.05874781]
[1747459055902,0.3997379,103600.0,103590.0,1.19575414]
[1747459056104,0.3997379,103600.0,103590.0,0.78427414]
[1747459056305,0.3997379,103600.0,103590.0,1.19571414]
[1747459056306,0.4526379,103600.0,103590.0,1.19571414]
[1747459056502,0.4526379,103600.0,103590.0,0.78427414]
[1747459056703,0.4526379,103600.0,103590.0,1.19571414]
[1747459056898,0.4526379,103600.0,103590.0,1.05965211]
[1747459057099,0.4526379,103600.0,103590.0,1.12213663]
[1747459057503,0.4526379,103600.0,103590.0,1.16441442]
[1747459057690,0.4526379,103600.0,103590.0,1.1019299]
[1747459057894,0.4526379,103600.0,103590.0,1.16441442]
[1747459058299,0.4526379,103600.0,103590.0,1.06786442]
[1747459058708,0.4526379,103600.0,103590.0,1.02558663]
[1747459059302,0.4526379,103600.0,103590.0,0.96310211]
[1747459059602,0.4526379,103600.0,103590.0,1.02558663]
[1747459060602,0.2596523,103600.0,103590.0,1.08704511]
[1747459061101,0.4526378,103600.0,103590.0,1.08704511]
[1747459061502,0.4526378,103600.0,103590.0,1.14244511]
[1747459061709,0.4526378,103600.0,103590.0,1.07996059]
[1747459062010,0.4526378,103600.0,103590.0,1.14244511]
[1747459063108,0.4526378,103600.0,103590.0,1.18471943]
[1747459065511,0.5059378,103600.0,103590.0,1.18471943]
[1747459066415,0.5059378,103600.0,103590.0,1.12223491]
[1747459066615,0.5059378,103600.0,103590.0,1.17927727]
[1747459067108,0.5059378,103600.0,103590.0,1.11679275]
[1747459067417,0.5059378,103600.0,103590.0,1.11755275]
[1747459067612,0.5059378,103600.0,103590.0,1.13776295]
[1747459068013,0.5059378,103600.0,103590.0,1.07527843]
[1747459068216,0.44568321,103600.0,103590.0,0.98870885]
[1747459068511,0.44568321,103600.0,103590.0,1.18579295]
[1747459069212,0.44568321,103600.0,103590.0,1.12330843]
[1747459069509,0.86896773,103600.0,103590.0,0.96584853]
[1747459069717,0.86896773,103600.0,103590.0,0.97129069]
[1747459070016,0.80648321,103600.0,103590.0,0.97129069]
[1747459070218,0.80648321,103600.0,103590.0,0.87474069]
[1747459070615,0.80648321,103600.0,103590.0,0.86929853]
[1747459071519,0.80648321,103600.0,103590.0,0.90921997]
[1747459073917,0.80648321,103600.0,103590.0,0.78153846]
[1747459074118,0.86896773,103600.0,103590.0,0.37769426]
[1747459074518,0.86896773,103600.0,103590.0,0.78169846]
[1747459074913,0.86896773,103600.0,103590.0,0.58869426]
[1747459075126,0.86896773,103600.0,103590.0,0.64960564]
[1747459076328,0.80648321,103600.0,103590.0,0.64960564]
[1747459076522,0.86896773,103600.0,103590.0,0.64960564]
[1747459076725,0.86896773,103600.0,103590.0,0.45660144]
[1747459076922,0.86896773,103600.0,103590.0,0.64960564]
[1747459078020,0.89912698,103600.0,103590.0,0.69879751]
[1747459081335,0.89912698,103600.0,103590.0,0.60224751]
[1747459081937,0.83664246,103600.0,103590.0,0.60768967]
[1747459082135,0.47584246,103600.0,103590.0,0.85017419]
[1747459082330,0.47584246,103600.0,103590.0,1.36627419]
[1747459082521,0.47584246,103600.0,103590.0,1.00547419]
[1747459082937,0.47584246,103600.0,103590.0,1.08452273]
[1747459084136,0.47584246,103600.0,103590.0,1.12501769]
[1747459084436,0.44563431,103600.0,103590.0,1.12501769]
[1747459084937,0.44563431,103600.0,103590.0,1.48581769]
[1747459085942,0.44563431,103600.0,103590.0,1.52810078]
[1747459086242,0.44563431,103600.0,103590.0,1.16730078]
[1747459086536,0.44563431,103600.0,103590.0,1.1058423]
[1747459086741,0.44563431,103600.0,103590.0,1.06355921]
[1747459086941,0.44563431,103600.0,103590.0,1.05811705]
[1747459087244,0.44563431,103600.0,103590.0,0.84711705]
[1747459087537,0.44563431,103600.0,103590.0,1.10008096]
[1747459087742,0.44563431,103600.0,103590.0,0.99531253]
[1747459087944,0.80643431,103600.0,103590.0,0.59162833]
[1747459088137,0.80643431,103600.0,103590.0,0.81527253]
[1747459088338,0.80643431,103600.0,103590.0,0.57483689]
[1747459088537,0.80643431,103600.0,103590.0,0.76784109]
[1747459088743,0.80643431,103600.0,103590.0,0.71664109]
[1747459090945,0.86891883,103600.0,103590.0,0.72120109]
[1747459091338,0.86891883,103600.0,103590.0,0.62465109]
[1747459092447,0.80643431,103600.0,103590.0,0.62465109]
[1747459093446,0.80643431,103600.0,103590.0,0.41417109]
[1747459093650,0.80643431,103600.0,103590.0,0.62441109]
[1747459093844,0.86891883,103600.0,103590.0,0.22116689]
[1747459094037,0.86891883,103600.0,103590.0,0.43136689]
[1747459094239,0.1930042,103590.0,103580.0,0.49904607]
[1747459094439,0.76938872,103590.0,103580.0,0.5103218]
[1747459094739,0.40858872,103590.0,103580.0,0.5610218]
[1747459095248,0.59548753,103590.0,103580.0,0.45554021]
[1747459095547,0.53300301,103590.0,103580.0,0.49959217]
[1747459096352,0.89380301,103590.0,103580.0,0.49959217]
[1747459098050,0.53300301,103590.0,103580.0,0.49959217]
[1747459098643,0.89380301,103590.0,103580.0,0.49959217]
[1747459098842,0.89380301,103590.0,103580.0,0.69773356]
[1747459099044,0.89380301,103590.0,103580.0,0.59881846]
[1747459100858,0.95628753,103590.0,103580.0,0.14781186]
[1747459101247,1.03973753,103590.0,103580.0,0.00898086]
[1747459102054,1.03973753,103590.0,103580.0,0.22510086]
[1747459102255,1.03973753,103590.0,103580.0,0.00898086]
[1747459102456,0.97725301,103590.0,103580.0,0.00898086]
[1747459102750,1.06994568,103590.0,103580.0,0.00898086]
[1747459103456,1.00746116,103590.0,103580.0,0.20200366]
[1747459103757,1.00746116,103590.0,103580.0,0.07357751]
[1747459104155,0.88994568,103590.0,103580.0,0.07357751]
[1747459105452,0.88994568,103590.0,103580.0,0.11364159]
[1747459106556,0.82746116,103590.0,103580.0,0.30666439]
[1747459106757,0.88994568,103590.0,103580.0,0.30666439]
[1747459107659,0.88994568,103590.0,103580.0,0.11364159]
[1747459108151,0.85965163,103590.0,103580.0,0.11364159]
[1747459109262,0.85965163,103590.0,103580.0,0.04006408]
[1747459109466,0.1930228,103580.0,103570.0,0.92127208]
[1747459109654,0.3490228,103580.0,103570.0,0.96127208]
[1747459110154,0.3490228,103580.0,103570.0,1.14127208]
[1747459110663,0.3490228,103580.0,103570.0,1.18245525]
[1747459110858,0.3490228,103580.0,103570.0,1.13419525]
[1747459111160,0.3490228,103580.0,103570.0,0.95419525]
[1747459111462,0.49945113,103580.0,103570.0,0.95419525]
[1747459111764,0.50145113,103580.0,103570.0,0.96619525]
[1747459112153,0.50145113,103580.0,103570.0,0.91696977]
[1747459112358,0.50345113,103580.0,103570.0,0.97922977]
[1747459113061,0.50345113,103580.0,103570.0,0.93096977]
[1747459113765,0.50345113,103580.0,103570.0,0.99713018]
[1747459114468,0.50345113,103580.0,103570.0,0.72955018]
[1747459114669,0.50345113,103580.0,103570.0,0.84699018]
[1747459116065,0.50345113,103580.0,103570.0,0.89889018]
[1747459116570,0.50345113,103580.0,103570.0,1.0097747]
[1747459117774,0.50345113,103580.0,103570.0,1.08335221]
[1747459118075,0.50345113,103580.0,103570.0,1.02086769]
[1747459121770,0.50345113,103580.0,103570.0,1.08335221]
[1747459122174,0.50345113,103580.0,103570.0,1.0097747]
[1747459122673,0.50345113,103580.0,103570.0,1.05204634]
[1747459123272,0.50345113,103580.0,103570.0,0.95548634]
[1747459123678,0.50345113,103580.0,103570.0,0.9132147]
[1747459124173,0.44328571,103580.0,103570.0,0.9132147]
[1747459125576,0.44328571,103580.0,103570.0,0.95550672]
[1747459126577,0.44328571,103580.0,103570.0,0.95720672]
[1747459127975,0.44328571,103580.0,103570.0,0.73776672]
[1747459128176,0.44328571,103580.0,103570.0,0.95608672]
[1747459128374,0.44328571,103580.0,103570.0,0.8936022]
[1747459128674,0.44328571,103580.0,103570.0,0.8919022]
[1747459129073,0.44328571,103580.0,103570.0,0.84961018]
[1747459129677,0.44328571,103580.0,103570.0,0.89190611]
[1747459129880,0.44328571,103580.0,103570.0,0.93710807]
[1747459130179,0.44328571,103580.0,103570.0,1.01040558]
[1747459130772,0.80408571,103580.0,103570.0,1.01040558]
[1747459131781,0.80408571,103580.0,103570.0,0.96200558]
[1747459132386,0.80408571,103580.0,103570.0,0.91010558]
[1747459132569,0.80408571,103580.0,103570.0,0.91842558]
[1747459133175,0.80408571,103580.0,103570.0,0.77125898]
[1747459133376,0.80408571,103580.0,103570.0,0.96428288]
[1747459133577,0.80408571,103580.0,103570.0,0.92198695]
[1747459133776,0.44328571,103580.0,103570.0,0.92198695]
[1747459134282,0.44328571,103580.0,103570.0,0.96429687]
[1747459134577,0.80408571,103580.0,103570.0,0.92198695]
[1747459136510,0.44328571,103580.0,103570.0,0.92198695]
[1747459137777,0.44328571,103580.0,103570.0,1.06670634]
[1747459139369,0.44328571,103580.0,103570.0,1.0546603]
[1747459140480,0.44328571,103580.0,103570.0,1.01234091]
[1747459140873,0.44328571,103580.0,103570.0,1.05466168]
[1747459141070,0.44328571,103580.0,103570.0,1.1171462]
[1747459141273,0.39178571,103580.0,103570.0,1.4779462]
[1747459141676,0.19876291,103580.0,103570.0,1.4779462]
[1747459141879,0.39178561,103580.0,103570.0,1.4779462]
[1747459142181,0.39178561,103580.0,103570.0,1.6579462]
[1747459142675,0.39178561,103580.0,103570.0,1.23466168]
[1747459142882,0.39178561,103580.0,103570.0,1.2971462]
[1747459143082,0.44348561,103580.0,103570.0,0.8603062]
[1747459143382,0.44348561,103580.0,103570.0,1.1597462]
[1747459145076,0.44348561,103580.0,103570.0,1.3397462]
[1747459145585,0.44348561,103580.0,103570.0,1.38763916]
[1747459146783,0.44348561,103580.0,103570.0,0.95708132]
[1747459146982,0.44348561,103580.0,103570.0,1.39272132]
[1747459149186,0.44348561,103580.0,103570.0,1.3302368]
[1747459149388,0.44348561,103580.0,103570.0,1.39272132]
[1747459150389,0.44348561,103580.0,103570.0,1.40476736]
[1747459152691,0.44348561,103580.0,103570.0,1.34228284]
[1747459152886,0.44348561,103580.0,103570.0,1.33684068]
[1747459153891,0.44348561,103580.0,103570.0,1.34228284]
[1747459154195,0.44348561,103580.0,103570.0,1.24572284]
[1747459154493,0.44348561,103580.0,103570.0,1.30820736]
[1747459154685,0.44348561,103580.0,103570.0,1.66900736]
[1747459154880,0.25046291,103580.0,103570.0,1.66900736]
[1747459155092,0.14606291,103580.0,103570.0,1.83149188]
[1747459155395,0.14606291,103580.0,103570.0,1.92803988]
[1747459155990,0.10100447,103580.0,103570.0,2.05304554]
[1747459156190,0.10100447,103580.0,103570.0,2.14959393]
[1747459156391,0.24708554,103590.0,103580.0,0.1930228]
[1747459156593,0.24708554,103590.0,103580.0,0.77879184]
[1747459156897,0.24708554,103590.0,103580.0,1.96637261]
[1747459157095,0.24708554,103590.0,103580.0,2.18291168]
[1747459157301,0.24708554,103590.0,103580.0,2.36291168]
[1747459157599,0.25508554,103590.0,103580.0,2.46291168]
[1747459158598,0.25708554,103590.0,103580.0,2.46391168]
[1747459158998,0.25708554,103590.0,103580.0,2.51531168]
[1747459159202,0.10655,103590.0,103580.0,2.57559131]
[1747459159801,0.10655,103590.0,103580.0,2.72895531]
[1747459161506,0.15945,103590.0,103580.0,2.72895531]
[1747459162016,0.15945,103590.0,103580.0,2.77735531]
[1747459163614,0.15945,103590.0,103580.0,2.69770926]
[1747459163817,0.15945,103590.0,103580.0,3.03042926]
[1747459164012,0.15945,103590.0,103580.0,2.59770926]
[1747459164213,0.15945,103590.0,103580.0,3.13034926]
[1747459165016,0.15945,103590.0,103580.0,2.69770926]
[1747459165222,0.20665,103590.0,103580.0,3.13042926]
[1747459166010,0.20665,103590.0,103580.0,3.07014963]
[1747459167319,0.20665,103590.0,103580.0,2.99643168]
[1747459169922,0.20665,103590.0,103580.0,2.87146264]
[1747459170125,0.20665,103590.0,103580.0,2.99643168]
[1747459170624,0.20665,103590.0,103580.0,3.2153594]
[1747459171026,0.16357704,103590.0,103580.0,3.2153594]
[1747459171818,0.16357704,103590.0,103580.0,3.11830033]
[1747459172014,0.21707704,103590.0,103580.0,3.11830033]
[1747459176128,0.21707704,103590.0,103580.0,3.06125797]
[1747459177929,0.21707704,103590.0,103580.0,2.41627345]
[1747459178122,0.21707704,103590.0,103580.0,2.91099797]
[1747459178322,0.21707704,103590.0,103580.0,2.91095797]
[1747459178627,0.18015693,103590.0,103580.0,2.96495797]
[1747459179322,0.18015693,103590.0,103580.0,2.53275797]
[1747459179521,0.18015693,103590.0,103580.0,2.86479797]
[1747459181524,0.18015693,103590.0,103580.0,2.81079797]
[1747459181731,0.18015693,103590.0,103580.0,2.44999797]
[1747459182327,0.18015693,103590.0,103580.0,2.81079797]
[1747459182831,0.18015693,103590.0,103580.0,2.73115192]
[1747459183228,0.18015693,103590.0,103580.0,2.43063155]
[1747459183524,0.18015693,103590.0,103580.0,2.15238703]
[1747459183730,0.18015693,103590.0,103580.0,2.43003155]
[1747459183918,0.37316113,103590.0,103580.0,2.15238703]
[1747459184229,0.37316113,103590.0,103580.0,2.26770703]
[1747459184419,0.37316113,103590.0,103580.0,1.83610703]
[1747459184618,0.37316113,103590.0,103580.0,2.32931155]
[1747459185933,0.18015693,103590.0,103580.0,2.32931155]
[1747459186535,0.33069247,103590.0,103580.0,2.26903192]
[1747459186929,0.33069247,103590.0,103580.0,1.17427192]
[1747459189832,0.33069247,103590.0,103580.0,1.53507192]
[1747459192441,0.33069247,103590.0,103580.0,1.4725874]
[1747459192842,0.33069247,103590.0,103580.0,1.53507192]
[1747459193342,0.33069247,103590.0,103580.0,1.31983192]
[1747459193534,0.33069247,103590.0,103580.0,1.53435192]
[1747459194029,0.33069247,103590.0,103580.0,1.4718674]
[1747459194234,0.33069247,103590.0,103580.0,1.53435192]
[1747459194442,0.33069247,103590.0,103580.0,1.53431192]
[1747459195044,0.33069247,103590.0,103580.0,1.53858131]
[1747459195543,0.52369657,103590.0,103580.0,1.53858131]
[1747459198041,0.33069247,103590.0,103580.0,1.53858131]
[1747459198642,0.33069247,103590.0,103580.0,1.17778131]
[1747459198845,0.52369667,103590.0,103580.0,1.11469679]
[1747459199045,0.52369667,103590.0,103580.0,1.17718131]
[1747459199244,0.52369667,103590.0,103580.0,0.99718131]
[1747459200844,0.48677402,103590.0,103580.0,0.72085679]
[1747459201047,0.48677402,103590.0,103580.0,0.50533679]
[1747459201350,0.94412402,103590.0,103580.0,0.89233602]
[1747459201551,0.94412402,103590.0,103580.0,0.67853602]
[1747459201847,0.94412402,103590.0,103580.0,0.89273602]
[1747459202238,0.94412402,103590.0,103580.0,0.96651688]
[1747459202752,0.94412402,103590.0,103580.0,1.00879956]
[1747459203547,1.00660854,103590.0,103580.0,0.79459956]
[1747459203850,0.88385139,103590.0,103580.0,0.96735688]
[1747459206152,0.88385139,103590.0,103580.0,0.88936954]
[1747459206754,0.88385139,103590.0,103580.0,0.67432954]
[1747459207054,0.94633591,103590.0,103580.0,0.55432954]